Cogmind - Beta 17 @@@ ROGUE MODE // 2026.07.09 @ 16:25:42 Player: lxealomych Result: Core melted Performance ------------- Evolutions (0) 0 Regions Visited (1) 200 Robots Destroyed (11) 55 Value Destroyed (311) 311 Prototype IDs (0) 0 Alien Tech Used (0) 0 Bonus (0) 0 TOTAL SCORE: 566 Bonus ------- None Cogmind --------- Core Integrity 0/250 Matter 201/300 Energy 54/250 System Corruption 0% Temperature Critical (525) Movement Walking (120) Location -10/Materials Parts ------- > --- POWER (1) -------- Ion Engine > --- PROPULSION (2) --- Aluminum Leg Aluminum Leg > --- UTILITY (2) ------ Small Storage Unit > --- WEAPON (2) ------- Beam Rifle Beam Rifle > --- INVENTORY (8) ---- Light Nuclear Core Aluminum Leg Aluminum Leg Aluminum Leg Hardened Light Armor Plating Medium Laser Grenade Launcher Peak State ------------ > --- POWER ------------ Ion Engine > --- PROPULSION ------- Aluminum Leg Aluminum Leg > --- UTILITY ---------- Small Storage Unit Hardened Light Armor Plating > --- WEAPON ----------- Beam Rifle Beam Rifle > --- INVENTORY -------- Ion Engine Light Nuclear Core Aluminum Leg Aluminum Leg Aluminum Leg Hardened Light Armor Plating Medium Laser Grenade Launcher [Rating: 11] Favorites ----------- Power Ion Engine Engine Ion Engine Propulsion Light Treads Treads Light Treads Leg Aluminum Leg Utility Small Storage Unit Storage Small Storage Unit Protection Hardened Light Armor Plating Weapon Medium Laser Energy Gun Medium Laser Build | -11 -10 ------- Run | Yrd Mat Slots Evolved . | . . Power . | . . Propulsion . | . . Utility . | . . Weapon . | . . Parts Attached 15 | 4 11 Power 3 | 1 2 Engine 3 | 1 2 Core . | . . Reactor . | . . Propulsion 5 | 2 3 Treads 2 | 2 . Leg 3 | . 3 Wheel . | . . Hover . | . . Flight . | . . Utility 2 | 1 1 Device . | . . Storage 1 | 1 . Processor . | . . Hackware . | . . Protection 1 | . 1 Artifact . | . . Weapon 5 | . 5 Energy Gun 5 | . 5 Energy Cannon . | . . Ballistic Gun . | . . Ballistic Cannon . | . . Launcher . | . . Special Weapon . | . . Impact Weapon . | . . Slashing Weapon . | . . Piercing Weapon . | . . Special Melee Weapon . | . . Unidentified Prototypes . | . . Parts Lost 2 | . 2 Power 1 | . 1 Propulsion . | . . Utility 1 | . 1 Weapon . | . . Highest Loss Streak 2 | . 2 To Critical Strikes . | . . Average Backups 6 | 4 7 Power 1 | . 1 Propulsion 2 | 2 2 Utility . | . . Weapon 2 | 1 2 Tool/Special . | . . Unused Backups 9 | . 9 Power 3 | . 3 Propulsion 3 | . 3 Utility 1 | . 1 Weapon 2 | . 2 Tool/Special . | . . Average Slot Usage (%) 96 | . 96 Engine 13 | . 13 Treads 17 | . 17 Leg 10 | . 10 Storage 14 | . 14 Protection 12 | . 12 Energy Gun 27 | . 27 Peak Build Rating 11 | 4 11 Average Rating 7 | 3 8 On Entrance 2 | . 4 Avg Prop Armor Cover (%) . | . . Naked Turns . | . . Heaviest Build 21 | 10 21 Greatest Support 40 | 40 40 Greatest Overweight (x) 1 | . 1 Average Overweight (x) . | . . Largest Inventory Capacity 8 | 8 8 Average Capacity 7 | 7 8 Most Carried 8 | 6 8 Average Carried 7 | 4 7 Final Capacity 8 | 8 8 Final Carried 7 | 6 7 Class Distribution -------------------- 100% | Mutant Dominant Class ---------------- Mutant | -10/Materials Resources | -11 -10 ----------- Run | Yrd Mat Matter Collected 455 | 208 247 Remotely . | . . Salvage Created 387 | . 387 Parts 19 | . 19 Haulers Intercepted . | . . Recyclers Shooed . | . . Parts Field Recycled . | . . Retrieved Matter . | . . Parts Self-Destructed . | . . Prevented . | . . Parts Restored . | . . Kills | -11 -10 ------- Run | Yrd Mat Combat Hostiles Destroyed 7 | . 7 Guns 6 | . 6 Classes Destroyed 3 | . 3 Worker 2 | . 2 Watcher 2 | . 2 Grunt 7 | . 7 Best Kill Streak 3 | . 3 Combat Bots Only 2 | . 2 Max Kills in Single Turn 1 | . 1 Gunslinging . | . . Exploded . | . . Melee . | . . Uniques/NPCs Destroyed . | . . Combat | -11 -10 -------- Run | Yrd Mat Hostile Shots Fired 51 | . 51 Missed 8 | . 8 Hits 43 | . 43 Projectile 43 | . 43 Damage Taken 741 | . 741 Core 267 | . 267 Absorbed by Shields . | . . Core Remaining (%) 100 | 100 . Volleys Fired 37 | . 37 Largest 2 | . 2 Hottest 112 | . 112 Shots Fired 68 | . 68 Gun 68 | . 68 Cannon . | . . Launcher . | . . Special . | . . Kinetic . | . . Thermal 47 | . 47 Explosive . | . . Electromagnetic 21 | . 21 Robot Hit Streak 11 | . 11 Robot Miss Streak 3 | . 3 Penetration Max . | . . Secondary Targets 2 | . 2 Max Gunslinging Chain 1 | . 1 Shots Hit Robots 44 | . 44 Core Hits 20 | . 20 Critical Kills . | . . Critical Parts Destroyed . | . . Critical Strikes 1 | . 1 Burn 1 | . 1 Melee Attacks . | . . Impact . | . . Slashing . | . . Piercing . | . . Sneak Attacks . | . . Combat Hostiles . | . . Follow-up Attacks . | . . Damage Inflicted 640 | . 640 Guns 640 | . 640 Cannons . | . . Explosions . | . . Melee . | . . Ramming . | . . Kinetic . | . . Thermal 433 | . 433 Explosive . | . . Electromagnetic 207 | . 207 Impact . | . . Slashing . | . . Piercing . | . . Highest Corruption . | . . Average Corruption . | . . Corruption Purged . | . . Corruption Blocked . | . . Overload Shots . | . . Overflow Damage . | . . Projectiles . | . . Explosions . | . . Melee . | . . Knockbacks . | . . Impact . | . . Kinetic . | . . Secondary . | . . Self-Inflicted Damage . | . . Shots . | . . Rammed . | . . Targets Rammed . | . . Kicked . | . . Crushed . | . . Highest Temperature 659 | . 659 Average Temperature 255 | . 255 Received Heat Transfer 327 | . 327 Effects 34 | . 34 Shutdowns 3 | . 3 Energy Bleed 2 | . 2 Matter Decay 5 | . 5 Short Circuit 2 | . 2 Damage (minor) 3 | . 3 Damage (major) 14 | . 14 Damage (core) 5 | . 5 Siege Activations . | . . Martial Activations . | . . Shielding Activations . | . . Robots Disrupted . | . . Combat Hostiles . | . . Robots Corrupted . | . . Combat Hostiles . | . . Parts Fried . | . . Impact Corruptions . | . . Robots Melted 1 | . 1 Combat Hostiles 1 | . 1 Parts Melted 4 | . 4 Heat Transferred 1258 | . 1258 Parts Sabotaged . | . . Parts Stolen . | . . Parts Stripped . | . . Power Chain Reactions . | . . Alert | -11 -10 ------- Run | Yrd Mat Maximum Alert Level . | . . Low Security (%) 100 | 100 100 Level 1 . | . . Level 2 . | . . Level 3 . | . . Level 4 . | . . Level 5 . | . . High Security . | . . Max Security . | . . Peak Influence 58 | . 58 Initial . | . . Average 16 | . 19 Influence Increases 205 | . 205 Destroy 0b10 Robot/C 140 | . 140 Destroy 0b10 Robot/NC 20 | . 20 Destroy Leader 44 | . 44 Destroy Structure 1 | . 1 Influence Decreases 156 | . 156 Time Decay 136 | . 136 Lost Part 20 | . 20 Squads Dispatched 1 | . 1 Investigation . | . . Extermination . | . . Reinforcement 1 | . 1 Assault . | . . Garrison . | . . Intercept . | . . Searches Triggered . | . . Construction Impeded . | . . Haulers Reinforced . | . . Active Scanning Responses . | . . Cargo Convoy Interrupts . | . . Stealth | -11 -10 --------- Run | Yrd Mat Distress Signals 1 | . 1 Communications Jammed . | . . Distress Signals . | . . Times Spotted 10 | . 10 Peak Tracking Total 2 | . 2 Tactical Retreats . | . . Traps | -11 -10 ------- Run | Yrd Mat Traps Triggered . | . . Indirectly . | . . Trap Hack Attempts . | . . Triggered . | . . Disarmed . | . . Reprogrammed . | . . Reused . | . . Traps Extracted . | . . Installed . | . . Triggered . | . . Machines | -11 -10 ---------- Run | Yrd Mat Machines Disabled . | . . Max in Single Turn . | . . Machines Repaired . | . . Machines Dismantled . | . . Machines Sabotaged . | . . Overloaded Fab Kills . | . . Hacking | -11 -10 --------- Run | Yrd Mat Machines Accessed . | . . Terminals . | . . Fabricators . | . . Repair Stations . | . . Recycling Units . | . . Scanalyzers . | . . Garrison Access . | . . Total Hacks . | . . Successful . | . . Failed . | . . Catastrophic . | . . Database Lockouts . | . . Manual . | . . Terminals . | . . Fabricators . | . . Repair Stations . | . . Recycling Units . | . . Scanalyzers . | . . Garrison Access . | . . Terminal Hacks . | . . Fabricator Hacks . | . . Repair Station Hacks . | . . Recycling Unit Hacks . | . . Scanalyzer . | . . Garrison Access Hacks . | . . Unauthorized Hacks . | . . Terminals . | . . Fabricators . | . . Repair Stations . | . . Recycling Units . | . . Scanalyzers . | . . Garrison Access . | . . Data Cores Recovered . | . . Used . | . . Hacking Detections . | . . Full Trace Events . | . . Feedback Events . | . . Feedback Blocked . | . . Robot Schematics Acquired . | . . Robots Built . | . . Authchips . | . . Time . | . . Total Robot Build Rating . | . . Part Schematics Acquired . | . . Parts Built . | . . Authchips . | . . Time . | . . Total Part Build Rating . | . . Part Studies Acquired . | . . Parts Repaired . | . . Time . | . . Parts Recycled . | . . Recycled Matter . | . . Retrieved Matter . | . . Retrieved Components . | . . Parts Scanalyzed . | . . Part Schematics Acquired . | . . Parts Damaged . | . . Bothacking | -11 -10 ------------ Run | Yrd Mat Used RIF Installer . | . . Robots Hacked . | . . Non-combat . | . . Combat . | . . Robot Hacks Applied . | . . Relay Couplers Released . | . . Fabnet Peak Effective % . | . . Robots Rewired . | . . Allies Hacked . | . . Hacks Repelled . | . . Allies | -11 -10 -------- Run | Yrd Mat Total Allies . | . . Largest Group . | . . Highest-Rated Group . | . . Highest-Rated Ally . | . . Total Orders . | . . Ally Attacks . | . . Total Damage . | . . Kills . | . . Allies Corrupted . | . . Allies Melted . | . . Intel | -11 -10 ------- Run | Yrd Mat Active Infowar (turns) . | . . Robot Analysis Total . | . . Derelict Logs Recovered . | . . Drone Launches . | . . Drone Recoveries . | . . Exploration | -11 -10 ------------- Run | Yrd Mat Turns Passed 522 | 93 429 Spaces Moved 251 | 61 190 Core 16 | 16 . Treads 158 | 45 113 Legs 77 | . 77 Wheels . | . . Hover . | . . Flight . | . . Fastest Speed 50 | 50 120 Average Speed 140 | 131 144 Slowest Speed 190 | 160 190 Overloaded Moves . | . . Propulsion Burnouts . | . . Robots Hopped . | . . Potential Cave-ins . | . . Cave-ins Triggered . | . . Exploration Rate (%) 14 | 5 23 Regions Visited 1 Branch Regions . Pre-discovered Areas . | . . Known Exits Taken . | . . Unknown Exits Taken 1 | 1 . Scrap Searched . | . . Spaces Dug . | . . Terrain Destroyed . | . . Melee . | . . Projectile . | . . AOE . | . . Terrain Rammed . | . . Walls Destroyed . | . . Machines Disabled . | . . Actions | -11 -10 --------- Run | Yrd Mat Total 356 | 74 282 Wait 21 | . 21 Move 250 | 60 190 Hop . | . . Pick Up 23 | 10 13 Fast Attach . | . . Attach 12 | 4 8 Detach . | . . Swap 3 | . 3 Drop 10 | . 10 Fire 37 | . 37 Melee . | . . Ram . | . . Kick . | . . Crush . | . . Escape Stasis . | . . Rewire . | . . Trap . | . . Miscellaneous . | . . Route ------- -11/Scrapyard -10/Materials History --------- Turn | Location | Event 9 | -11/Scrapyard | Discovered new exit (range 15) 94 | -11/Scrapyard | Entered Materials 333 | -10/Materials | Build established: Mutant 497 | -10/Materials | Core integrity fell below 50% 516 | -10/Materials | Core integrity fell below 20% 524 | -10/Materials | Core melted Last Messages --------------- 00510_ Overheating: Beam Rifle damaged (-19). 00510_ K-01 Serf collects debris. 00511_ Overheating: Core damaged (-32). 00512_ Overheating: Beam Rifle damaged (-10). 00512_ Ion Engine destroyed. 00514_ Overheating: Matter decay (-54). 00514_ K-01 Serf collects debris. 00515_ G-34 Mercenary destroyed. 00515_ K-01 Serf collects debris. 00516_ Overheating: Core damaged (-35). 00517_ K-01 Serf collects debris. 00520_ Overheating: Energy bleed (-13). 00520_ Dropped Aluminum Leg. 00521_ Overheating: Aluminum Leg damaged (-19). 00521_ Overheating: Beam Rifle damaged (-5). 00521_ Overheating: Sml. Storage Unit damaged (-14). 00522_ Overheating: Matter decay (-25). 00523_ K-01 Serf collects debris. 00524_ Power failure, Ion Engine shutdown. 00524_ Overheating: Core damaged (-42). Map ----- +----------------------------------------------------+ | ???????????????????????????????????????????????? | | ???????????????????????????????????????????????? | | ???????????????????????????????????????????????? | | ???????????????????????????????????????????????? | | ???????????????????????????????????????????????? | | ??????????????????????????????????? ?????????? | | ??????????????????????##########??? ???????? | | ??????????????????????# #??# ??????? | | ??????????????????????#""""" #??# ??????? | | ??????????????????????#""""" #??# #??????? | | ??????????????????????#""""" #??# #??????? | | ??????????????????????#""""" #??# #??????? | | ??????????????????????#""""" #??# #??????? | | ??????????????????????#""""" !#??# #??????? | | ??????????????????????#""""" #??# #??????? | | ??????????????????????# #??# #??????? | | ??????????????????????#####+####??# #??????? | | ?????????????????????????# ###### #??????? | | ?????????????????????????# # !# #??????? | | ?????????????????????????# # #== ####???? | | ?????????????????????????#k k# *[# [ #???? | | ?????????????????????????# # [ +[ #???? | | ?????????????????????????#!*%# #* #???? | | ????????? ###+#######% =###### [ #???? | | ????????? o % a % u* u * #???? | | ?????????? T = !%=@ ########## ##???? | | ????????? %! #????????# #????? | | ????????? u #########???###### #####? | | ?????????? ######?????????????# ## !!#? | | ?????????????????????????????????# ## !!#? | | ?????????????????????????????????# ## [#? | | ?????????????????????????????????#/ + [#? | | ???????????????????????########### ## !#? | | ???????????????????????# T ##[ !## !#? | | ???????????????????????# ## ## #####? | | ???????????????????????# ###+## #???? | | ???????????????????????# # #???? | | ???????????????????????# * / " #???? | | ???????????????????????# """ # #???? | | ???????????????????????# """ ###+## #???? | | ???????????????????????# """ ## ## ##???? | | ???????????????????????# ## ! ## #????? | | ???????????????????????########### ## #????? | | ?????????????????????????????????# ## #????? | | ?????????????????????????????????# ## #????? | | ?????????????????????????????????# ######????? | | ?????????????????????????????????# #?????????? | | ?????????????????????????????????#####?????????? | | ???????????????????????????????????????????????? | | ???????????????????????????????????????????????? | +----------------------------------------------------+ Best States ------------- Heat Dissipation 25 Energy Generation 10 Energy Capacity 250 Matter Stores 300 Matter Capacity 300 Sight Range 16 Terrain Scan Density 10 Armor Coverage 150 Evasion (%) 55 Recoil Reduction 2 Item Schematics ----------------- None Robot Schematics ------------------ None Fabricated ------------ Nothing Repaired ---------- Nothing Studied --------- None Alien Tech Used ----------------- None Achievements -------------- None Challenges ------------ None Game ------ Seed AerolevExperimentalBuckler Manual? 0 Play Time 00:08:16 Cumulative 7.8 hours Start 2026.07.09 @ 16:19:18 End 2026.07.09 @ 16:25:42 Sessions 1 Manual Loads 0 Difficulty Rogue Special Mode None Game No. 7 Rogue 4 Adventurer 3 Explorer 0 Win Type - Total 0 Types 0/0/0/0/0/0/0/0/0/0 Lore% 4 Gallery% 12 Achievement% 12 Wizard Run 0 Options --------- Layout 0 ASCII 0 Keyboard 0 Movement Mouse Keybinds 0 Fullscreen 1 Font 18/SmallcapsGlow Map View 76x50 Zoom Use 0% Tactical HUD 1 Map Filters NONE Filters NONE Steam 1 RUN: a8f3cfd4-c7b4-4b3d-9799-b47839483f6f